[Event "Turkish-ch Youth U18 Girls 2024"]
[Site "Belek Antalya"]
[Date "2024.01.27"]
[Round "7"]
[White "Sovukluk, Ecem Su"]
[Black "Yigit, Cansu"]
[Result "0-1"]
[ECO "C56"]
[WhiteElo "1242"]
[BlackElo "1298"]
[Annotator "NA RC COMBH"]
[PlyCount "96"]
[EventDate "2024.01.21"]
[EventType "swiss"]
[EventCountry "TUR"]
[SourceTitle "playchess.com"]
[Source "ChessBase"]
[SourceQuality "1"]
[TimeControl "5400+30"]

1. e4 {[%emt 0:01:00]} e5 {[%emt 0:01:00]} 2. Nf3 {[%emt 0:00:00]} Nc6 {[%emt 0:00:30]} 3. d4 {[%emt 0:00:00]} exd4 {[%emt 0:00:30]} 4. Bc4 {[%emt 0:00:30]} Nf6 {[%emt 0:00:00]} 5. O-O {[%emt 0:00:00]} Nxe4 {[%emt 0:00:00]} 6. Re1 {[%emt 0:00:00]} d5 {[%emt 0:00:30]} 7. Bxd5 {[%emt 0:00:30]} Qxd5 {[%emt 0:00:30]} 8. Nc3 {[%emt 0:00:00]} Qd7 {[%emt 0:01:30]} 9. Nxe4 {[%emt 0:01:00]} Be7 {[%emt 0:00:30]} 10. Bg5 {[%emt 0:00:30]} O-O {[%emt 0:02:30]} 11. Bf4 {[%emt 0:05:30]} b6 {[%emt 0:12:30]} 12. a3 {[%emt 0:00:30]} Ba6 {[%emt 0:10:30]} 13. Nfg5 {[%emt 0:02:30]} Bxg5 {[%emt 0:03:30]} 14. Bxg5 {[%emt 0:01:30]} Rfe8 {[%emt 0:08:30]} 15. Qf3 {[%emt 0:01:30]} Qe6 {[%emt 0:01:30]} 16. Nf6+ {[%emt 0:01:30]} gxf6 {[%emt 0:00:30]} 17. Rxe6 {[%emt 0:00:30]} Rxe6 {[%emt 0:00:30]} 18. Bxf6 {[%emt 0:00:30]} Kf8 {[%emt 0:02:30]} 19. h4 {[%emt 0:00:30]} Rae8 {[%emt 0:01:30]} 20. Kh2 {[%emt 0:00:30]} Ne5 {[%emt 0:01:30]} 21. Bxe5 {[%emt 0:01:30]} Rxe5 {[%emt 0:00:00]} 22. a4 {[%emt 0:02:30]} Rc5 {[%emt 0:04:00]} 23. b4 {[%emt 0:02:30]} Rxc2 {[%emt 0:02:30]} 24. b5 {[%emt 0:00:30]} Bc8 {[%emt 0:00:30]} 25. Qd3 {[%emt 0:00:00]} Rxf2 {[%emt 0:01:30]} 26. Qa3+ {[%emt 0:00:00]} Re7 {[%emt 0:00:30]} 27. Re1 {[%emt 0:00:30]} Be6 {[%emt 0:00:00]} 28. Re4 {[%emt 0:01:30]} Ra2 {[%emt 0:10:00]} 29. Qb4 {[%emt 0:00:30]} d3 {[%emt 0:00:30]} 30. Qd4 {[%emt 0:01:30]} Rd7 {[%emt 0:00:30]} 31. Qh8+ {[%emt 0:01:30]} Ke7 {[%emt 0:00:30]} 32. Qg7 {[%emt 0:09:30]} Rd5 {[%emt 0:04:30]} 33. Rd4 {[%emt 0:03:30]} Rxd4 {[%emt 0:13:09]} 34. Qxd4 {[%emt 0:00:30]} d2 {[%emt 0:00:05]} 35. Kg3 {[%emt 0:03:30]} h6 {[%emt 0:01:54]} 36. Kf4 {[%emt 0:00:30]} Rc2 {[%emt 0:00:30]} 37. Ke3 {[%emt 0:00:30]} h5 {[%emt 0:04:43]} 38. g3 {[%emt 0:07:30]} f6 {[%emt 0:05:01]} 39. g4 {[%emt 0:00:30]} Bxg4 {[%emt 0:00:30]} 40. Qe4+ {[%emt 0:00:30]} Kf8 {[%emt 0:02:40]} 41. Qb4+ {[%emt 0:03:30]} Kf7 {[%emt 0:00:31]} 42. Qb3+ {[%emt 0:01:30]} Kg7 {[%emt 0:00:10]} 43. Qb4 {[%emt 0:01:30]} Kf7 {[%emt 0:04:37]} 44. Qb3+ {[%emt 0:00:30]} Ke7 {[%emt 0:00:05]} 45. Qxc2 {[%emt 0:06:30]} d1=Q {[%emt 0:00:30]} 46. Qxc7+ {[%emt 0:00:00]} Qd7 {[%emt 0:00:00]} 47. Qc2 {[%emt 0:01:00]} Qe6+ {[%emt 0:00:40]} 48. Kf2 {[%emt 0:00:30]} Qf5+ {[%emt 0:00:48]} 0-1

[Event "Turkish-ch Youth U18 Girls 2024"]
[Site "Belek Antalya"]
[Date "2024.01.27"]
[Round "7"]
[White "Tekin, Ceyda"]
[Black "Uster, Defne"]
[Result "0-1"]
[ECO "A23"]
[WhiteElo "1207"]
[BlackElo "1249"]
[Annotator "NA RC COMBH"]
[PlyCount "60"]
[EventDate "2024.01.21"]
[EventType "swiss"]
[EventCountry "TUR"]
[SourceTitle "playchess.com"]
[Source "ChessBase"]
[SourceQuality "1"]
[TimeControl "5400+30"]

1. c4 {[%emt 0:01:00]} e5 {[%emt 0:02:00]} 2. Nc3 {[%emt 0:00:30]} Nf6 {[%emt 0:00:30]} 3. g3 {[%emt 0:00:30]} c6 {[%emt 0:10:30]} 4. Bg2 {[%emt 0:01:30]} d5 {[%emt 0:04:30]} 5. cxd5 {[%emt 0:02:30]} cxd5 {[%emt 0:08:30]} 6. d4 {[%emt 0:14:30]} exd4 {[%emt 0:01:30]} 7. Qxd4 {[%emt 0:00:30]} Nc6 {[%emt 0:00:30]} 8. Qd1 {[%emt 0:12:30]} Be6 {[%emt 0:05:30]} 9. e3 {[%emt 0:03:30]} Bd6 {[%emt 0:11:30]} 10. Nge2 {[%emt 0:02:30]} O-O {[%emt 0:08:30]} 11. O-O {[%emt 0:00:30]} Bc5 {[%emt 0:07:30]} 12. Nf4 {[%emt 0:05:30]} d4 {[%emt 0:10:30]} 13. Nxe6 {[%emt 0:02:30]} fxe6 {[%emt 0:00:00]} 14. exd4 {[%emt 0:00:30]} Bxd4 {[%emt 0:01:00]} 15. Qb3 {[%emt 0:09:30]} Qd7 {[%emt 0:07:28]} 16. Re1 {[%emt 0:06:30]} Rae8 {[%emt 0:12:11]} 17. Be3 {[%emt 0:00:30]} Bxe3 {[%emt 0:00:30]} 18. Rxe3 {[%emt 0:00:30]} Ng4 {[%emt 0:02:48]} 19. Rd1 {[%emt 0:16:41]} Nd4 {[%emt 0:01:42]} 20. Qc4 {[%emt 0:00:34]} Nxe3 {[%emt 0:01:46]} 21. fxe3 {[%emt 0:00:29]} Qf7 {[%emt 0:00:43]} 22. Rf1 {[%emt 0:01:28]} Nf5 {[%emt 0:00:49]} 23. Bh3 {[%emt 0:03:21]} Nxe3 {[%emt 0:00:30]} 24. Bxe6 {[%emt 0:00:30]} Qxe6 {[%emt 0:00:30]} 25. Rxf8+ {[%emt 0:00:30]} Kxf8 {[%emt 0:00:30]} 26. Qc5+ {[%emt 0:00:30]} Re7 {[%emt 0:00:30]} 27. Qxa7 {[%emt 0:00:30]} Qf7 {[%emt 0:00:30]} 28. Qb8+ {[%emt 0:10:28]} Re8 {[%emt 0:00:58]} 29. Qd6+ {[%emt 0:00:48]} Kg8 {[%emt 0:00:25]} 30. Qd3 {[%emt 0:01:26]} Rf8 {[%emt 0:00:27]} 0-1